Cogmind - Beta 17.1 @@@ ROGUE MODE // 2026.09.24 @ 18:22:19 Player: profwumbo Result: Destroyed by D-53 Grenadier with Mini Grenade Launcher Performance ------------- Evolutions (0) 0 Regions Visited (2) 400 Robots Destroyed (13) 65 Value Destroyed (151) 151 Prototype IDs (0) 0 Alien Tech Used (0) 0 Bonus (0) 0 TOTAL SCORE: 616 Bonus ------- None Cogmind --------- Core Integrity 0/250 Matter 274/300 Energy 83/100 System Corruption 0% Temperature Cool (0) Movement Core (200) Ox3 Location -10/Mines Parts ------- > --- POWER (1) -------- (None) > --- PROPULSION (2) --- (None) > --- UTILITY (2) ------ Small Storage Unit Small Storage Unit > --- WEAPON (2) ------- Light Assault Rifle Light Assault Rifle > --- INVENTORY (8) ---- Light Ion Engine Light Ion Engine Peak State ------------ > --- POWER ------------ Light Ion Engine > --- PROPULSION ------- Light Treads Light Treads > --- UTILITY ---------- Small Storage Unit Improved Terrain Scanner > --- WEAPON ----------- Assault Rifle Assault Rifle > --- INVENTORY -------- Light Ion Engine Light Assault Rifle [Rating: 9] Favorites ----------- Power Light Ion Engine Engine Light Ion Engine Propulsion Light Treads Treads Light Treads Utility Small Storage Unit Device Improved Terrain Scanner Storage Small Storage Unit Weapon Assault Rifle Ballistic Gun Assault Rifle Launcher Grenade Launcher Build | -11 -10 -10 ------- Run | Yrd Mat Min Slots Evolved . | . . . Power . | . . . Propulsion . | . . . Utility . | . . . Weapon . | . . . Parts Attached 14 | 8 1 5 Power 2 | 1 . 1 Engine 2 | 1 . 1 Core . | . . . Reactor . | . . . Propulsion 2 | 2 . . Treads 2 | 2 . . Leg . | . . . Wheel . | . . . Hover . | . . . Flight . | . . . Utility 4 | 2 . 2 Device 1 | 1 . . Storage 3 | 1 . 2 Processor . | . . . Hackware . | . . . Protection . | . . . Artifact . | . . . Weapon 6 | 3 1 2 Energy Gun . | . . . Energy Cannon . | . . . Ballistic Gun 5 | 3 . 2 Ballistic Cannon . | . . . Launcher 1 | . 1 . Special Weapon . | . . . Impact Weapon . | . . . Slashing Weapon . | . . . Piercing Weapon . | . . . Special Melee Weapon . | . . . Unidentified Prototypes . | . . . Parts Lost 9 | . . 9 Power 1 | . . 1 Propulsion 2 | . . 2 Utility 2 | . . 2 Weapon 4 | . . 4 Highest Loss Streak 9 | . . 9 To Critical Strikes . | . . . Average Backups 6 | 2 5 7 Power 1 | . 1 2 Propulsion . | . . . Utility 1 | . 1 1 Weapon 3 | . 2 3 Tool/Special . | . . . Unused Backups 1 | . . 1 Power 1 | . . 1 Propulsion . | . . . Utility . | . . . Weapon . | . . . Tool/Special . | . . . Average Slot Usage (%) 96 | . 100 95 Engine 13 | . 14 12 Treads 26 | . 28 26 Device 13 | . 14 12 Storage 14 | . 14 14 Ballistic Gun 26 | . 24 28 Launcher 1 | . 3 . Peak Build Rating 9 | 9 9 9 Average Rating 8 | 6 9 8 On Entrance 6 | . 9 9 Avg Prop Armor Cover (%) . | . . . Naked Turns . | . . . Heaviest Build 14 | 13 14 13 Greatest Support 40 | 40 40 40 Greatest Overweight (x) 3 | 3 . . Average Overweight (x) . | . . . Largest Inventory Capacity 8 | 8 8 8 Average Capacity 7 | 7 8 8 Most Carried 8 | 3 8 8 Average Carried 6 | 2 5 7 Final Capacity 8 | 8 8 8 Final Carried 8 | 3 8 2 Class Distribution -------------------- 100% | Mutant Dominant Class ---------------- Mutant | -10/Materials Mutant | -10/Mines Resources | -11 -10 -10 ----------- Run | Yrd Mat Min Matter Collected 487 | 280 141 66 Remotely . | . . . Salvage Created 517 | 127 346 44 Parts 36 | 7 21 8 Haulers Intercepted . | . . . Recyclers Shooed 2 | . 2 . Parts Field Recycled . | . . . Retrieved Matter . | . . . Parts Self-Destructed . | . . . Prevented . | . . . Parts Restored . | . . . Kills | -11 -10 -10 ------- Run | Yrd Mat Min Combat Hostiles Destroyed 5 | . 4 1 Guns 2 | . 1 1 AOE 3 | . 3 . Classes Destroyed 6 | 2 2 2 Builder 1 | . . 1 Tunneler 1 | 1 . . Recycler 5 | 1 4 . Watcher 1 | . 1 . Swarmer 4 | . 4 . Demolisher 1 | . . 1 Best Kill Streak 3 | 2 3 1 Combat Bots Only 3 | . 3 1 Max Kills in Single Turn 3 | 1 3 1 Gunslinging . | . . . Exploded 3 | . 3 . Melee . | . . . Uniques/NPCs Destroyed . | . . . Combat | -11 -10 -10 -------- Run | Yrd Mat Min Hostile Shots Fired 43 | . 19 24 Missed 5 | . 2 3 Hits 38 | . 17 21 Projectile 38 | . 17 21 AOE 23 | . . 23 Damage Taken 1071 | . 140 931 Core 261 | . 21 240 Absorbed by Shields . | . . . Core Remaining (%) 100 | 100 . . Volleys Fired 34 | 4 17 13 Largest 2 | 2 2 2 Hottest 50 | 40 50 50 Shots Fired 66 | 8 32 26 Gun 64 | 8 31 25 Cannon . | . . . Launcher 2 | . 1 1 Special . | . . . Kinetic 64 | 8 31 25 Thermal . | . . . Explosive 2 | . 1 1 Electromagnetic . | . . . Robot Hit Streak 9 | 6 5 9 Robot Miss Streak 3 | 1 2 3 Penetration Max . | . . . Secondary Targets . | . . . Shots Hit Robots 43 | 7 21 15 Core Hits 22 | 2 12 8 Critical Kills . | . . . Critical Parts Destroyed . | . . . Critical Strikes . | . . . Melee Attacks . | . . . Impact . | . . . Slashing . | . . . Piercing . | . . . Sneak Attacks . | . . . Combat Hostiles . | . . . Follow-up Attacks . | . . . Damage Inflicted 680 | 89 431 160 Guns 546 | 89 316 141 Cannons . | . . . Explosions 134 | . 115 19 Melee . | . . . Ramming . | . . . Kinetic 546 | 89 316 141 Thermal . | . . . Explosive 134 | . 115 19 Electromagnetic . | . . . Impact . | . . . Slashing . | . . . Piercing . | . . . Highest Corruption . | . . . Average Corruption . | . . . Corruption Purged . | . . . Corruption Blocked . | . . . Overload Shots . | . . . Overflow Damage . | . . . Projectiles . | . . . Explosions . | . . . Melee . | . . . Knockbacks . | . . . Impact . | . . . Kinetic . | . . . Secondary . | . . . Self-Inflicted Damage . | . . . Shots . | . . . Rammed . | . . . Targets Rammed . | . . . Kicked . | . . . Crushed . | . . . Highest Temperature . | . . . Average Temperature . | . . . Received Heat Transfer . | . . . Siege Activations . | . . . Martial Activations . | . . . Shielding Activations . | . . . Robots Disrupted . | . . . Combat Hostiles . | . . . Robots Corrupted . | . . . Combat Hostiles . | . . . Parts Fried . | . . . Impact Corruptions . | . . . Robots Melted . | . . . Combat Hostiles . | . . . Parts Melted . | . . . Heat Transferred . | . . . Parts Sabotaged . | . . . Parts Stolen . | . . . Parts Stripped . | . . . Power Chain Reactions . | . . . Alert | -11 -10 -10 ------- Run | Yrd Mat Min Maximum Alert Level . | . . . Low Security (%) 100 | 100 100 100 Level 1 . | . . . Level 2 . | . . . Level 3 . | . . . Level 4 . | . . . Level 5 . | . . . High Security . | . . . Max Security . | . . . Peak Influence 75 | 5 75 20 Initial 20 | . . 20 Average 11 | . 36 1 Influence Increases 169 | 10 123 36 Destroy 0b10 Robot/C 100 | . 80 20 Destroy 0b10 Robot/NC 40 | 10 25 5 Destroy Leader 22 | . 12 10 Destroy Structure 7 | . 6 1 Influence Decreases 164 | 10 70 84 Entered New Map 33 | . . 33 Time Decay 110 | 10 70 30 Lost Part 21 | . . 21 Squads Dispatched . | . . . Investigation . | . . . Extermination . | . . . Reinforcement . | . . . Assault . | . . . Garrison . | . . . Intercept . | . . . Searches Triggered . | . . . Construction Impeded . | . . . Haulers Reinforced . | . . . Active Scanning Responses . | . . . Cargo Convoy Interrupts . | . . . Stealth | -11 -10 -10 --------- Run | Yrd Mat Min Distress Signals 1 | . 1 . Communications Jammed . | . . . Distress Signals . | . . . Times Spotted 11 | . 8 3 Peak Tracking Total 4 | . 4 2 Tactical Retreats . | . . . Traps | -11 -10 -10 ------- Run | Yrd Mat Min Traps Triggered . | . . . Indirectly . | . . . Trap Hack Attempts . | . . . Triggered . | . . . Disarmed . | . . . Reprogrammed . | . . . Reused . | . . . Traps Extracted . | . . . Installed . | . . . Triggered . | . . . Machines | -11 -10 -10 ---------- Run | Yrd Mat Min Machines Disabled . | . . . Max in Single Turn . | . . . Machines Repaired . | . . . Machines Dismantled . | . . . Machines Sabotaged . | . . . Overloaded Fab Kills . | . . . Hacking | -11 -10 -10 --------- Run | Yrd Mat Min Machines Accessed . | . . . Terminals . | . . . Fabricators . | . . . Repair Stations . | . . . Recycling Units . | . . . Scanalyzers . | . . . Garrison Access . | . . . Total Hacks . | . . . Successful . | . . . Failed . | . . . Catastrophic . | . . . Database Lockouts . | . . . Manual . | . . . Terminals . | . . . Fabricators . | . . . Repair Stations . | . . . Recycling Units . | . . . Scanalyzers . | . . . Garrison Access . | . . . Terminal Hacks . | . . . Fabricator Hacks . | . . . Repair Station Hacks . | . . . Recycling Unit Hacks . | . . . Scanalyzer . | . . . Garrison Access Hacks . | . . . Unauthorized Hacks . | . . . Terminals . | . . . Fabricators . | . . . Repair Stations . | . . . Recycling Units . | . . . Scanalyzers . | . . . Garrison Access . | . . . Data Cores Recovered . | . . . Used . | . . . Hacking Detections . | . . . Full Trace Events . | . . . Feedback Events . | . . . Feedback Blocked . | . . . Robot Schematics Acquired . | . . . Robots Built . | . . . Authchips . | . . . Time . | . . . Total Robot Build Rating . | . . . Part Schematics Acquired . | . . . Parts Built . | . . . Authchips . | . . . Time . | . . . Total Part Build Rating . | . . . Part Studies Acquired . | . . . Parts Repaired . | . . . Time . | . . . Parts Recycled . | . . . Recycled Matter . | . . . Retrieved Matter . | . . . Retrieved Components . | . . . Parts Scanalyzed . | . . . Part Schematics Acquired . | . . . Parts Damaged . | . . . Bothacking | -11 -10 -10 ------------ Run | Yrd Mat Min Used RIF Installer . | . . . Robots Hacked . | . . . Non-combat . | . . . Combat . | . . . Robot Hacks Applied . | . . . Relay Couplers Released . | . . . Fabnet Peak Effective % . | . . . Robots Rewired . | . . . Allies Hacked . | . . . Hacks Repelled . | . . . Allies | -11 -10 -10 -------- Run | Yrd Mat Min Total Allies . | . . . Largest Group . | . . . Highest-Rated Group . | . . . Highest-Rated Ally . | . . . Total Orders . | . . . Ally Attacks . | . . . Total Damage . | . . . Kills . | . . . Allies Corrupted . | . . . Allies Melted . | . . . Intel | -11 -10 -10 ------- Run | Yrd Mat Min Active Infowar (turns) 609 | 49 214 346 Terrain 609 | 49 214 346 Robot Analysis Total . | . . . Derelict Logs Recovered 2 | . . 2 Drone Launches . | . . . Drone Recoveries . | . . . Exploration | -11 -10 -10 ------------- Run | Yrd Mat Min Turns Passed 730 | 130 214 386 Spaces Moved 383 | 72 99 212 Core 14 | 14 . . Treads 369 | 58 99 212 Legs . | . . . Wheels . | . . . Hover . | . . . Flight . | . . . Fastest Speed 50 | 50 160 160 Average Speed 157 | 145 160 160 Slowest Speed 200 | 200 160 160 Overloaded Moves . | . . . Propulsion Burnouts . | . . . Robots Hopped . | . . . Potential Cave-ins . | . . . Cave-ins Triggered . | . . . Exploration Rate (%) 23 | 4 18 47 Regions Visited 2 Branch Regions 1 Pre-discovered Areas . | . . . Known Exits Taken . | . . . Unknown Exits Taken 2 | 1 1 . Scrap Searched 1 | . . 1 Spaces Dug . | . . . Terrain Destroyed 10 | . 5 5 Melee . | . . . Projectile . | . . . AOE 10 | . 5 5 Terrain Rammed . | . . . Walls Destroyed . | . . . Machines Disabled . | . . . Actions | -11 -10 -10 --------- Run | Yrd Mat Min Total 444 | 85 122 237 Wait 4 | . . 4 Move 381 | 71 98 212 Hop . | . . . Pick Up 7 | 2 5 . Fast Attach 7 | 7 . . Attach 6 | . . 6 Detach . | . . . Swap 5 | 1 2 2 Drop . | . . . Fire 34 | 4 17 13 Melee . | . . . Ram . | . . . Kick . | . . . Crush . | . . . Escape Stasis . | . . . Rewire . | . . . Trap . | . . . Miscellaneous . | . . . Route ------- -11/Scrapyard -10/Materials -10/Mines (discovered 1 exit: *Mat) History --------- Turn | Location | Event 17 | -11/Scrapyard | Discovered new exit (range 15) 131 | -11/Scrapyard | Entered Materials 236 | -10/Materials | Discovered new exit (range 10) 318 | -10/Materials | Build established: Mutant 345 | -10/Materials | Entered Mines 519 | -10/Mines | Identified exit to Materials 674 | -10/Mines | Learned Materials emergency access door positions 675 | -10/Mines | Assembled infested the area 680 | -10/Mines | Assisted by a Guerilla fighting off Assembled 711 | -10/Mines | Core integrity fell below 50% 717 | -10/Mines | Core integrity fell below 20% 731 | -10/Mines | Destroyed by D-53 Grenadier with Mini Grenade Launcher Last Messages --------------- The unstable cave ceiling collapses. U-05 Engineer lays Concrete. U-05 Engineer builds a Wall. K-01 Serf collects debris. The unstable cave ceiling collapses. U-05 Engineer lays Concrete. The unstable cave ceiling collapses. U-05 Engineer lays Concrete. The unstable cave ceiling collapses. K-01 Serf collects debris. R-06 Scavenger collects Mni. Grenade Launcher. Lgt. Assault Rifle destroyed. U-05 Engineer lays Concrete. U-05 Engineer builds a Wall. Med. Matter Pod destroyed. R-06 Scavenger collects Cmb. Airjet. U-05 Engineer builds a Wall. The unstable cave ceiling collapses. U-05 Engineer destroyed. R-06 Scavenger collects Terrain Scanner. Map ----- +----------------------------------------------------+ | ??????????????????????## #?#?? ??? ? | | ??????????????????????# ######?????????? | | ??????????????????????# ######???????????? ?? | | ????????????????####?## ##????????#??????????? | | ??????????????### ## ##??????#?????#???????? | | ????????? ???## ####???????????????????? | | ???????? ### ##?#????????????????? | | ?????????# """ #?????#?????????????? | | ?????????### """ ## #?????????????? ????? | | ???????????# """ ## #??#??#????#????????? | | ????????? ?# ### ##????????????? ????? | | ??????? ## ##?# #?????#??#??????????? | | ????????? ??## ##??# ##?#######?#????????? | | ????????????? ?#??## #???# ##??## ##??????????? | | ??????????? ???????# #???# #??# #??????#???? | | ???????????????????# #??## #### ##?????#???? | | ???????????????????# #???## # #??????????? | | ???????????????????# #??? # #??????????? | | ??????????#????????# ##??##=% ###????????? | | ???????????????????# #?###%d! #????????? | | ??????????????????## ### r%| ## #??#?????? | | ??????????????????## # ###### ########?? | | ???????????????????# # "" #??# #?? | | ???????????????????# #??# #?? | | ???????????????????# ##??# """ #?? | | ?????????????????#?# @ ###??# < """ #?? | | ???????????????#???# ###???# """ #?? | | ??????#????????????## #?????# #?? | | ?????????????????#??# #?????# #?? | | ????????????????????### #?????############?? | | ??????????????????????## ##??????????????????? | | ???????????????????????###?###???????????????????? | | ???????????????????????????#?????????????????????? | | ??????????????????????#????????#?????????????????? | | | | | | | | | | | | | | | | | | | | | | | | | | | | | | | | | +----------------------------------------------------+ Best States ------------- Heat Dissipation 25 Energy Generation 10 Energy Capacity 125 Matter Stores 300 Matter Capacity 300 Sight Range 16 Terrain Scan Range 16 Terrain Scan Density 10 Evasion (%) 50 Recoil Reduction 2 Item Schematics ----------------- None Robot Schematics ------------------ None Fabricated ------------ Nothing Repaired ---------- Nothing Studied --------- None Alien Tech Used ----------------- None Achievements -------------- None Challenges ------------ None Game ------ Seed CooledZioniteBallwheel Manual? 0 Play Time 00:08:33 Cumulative 37.9 hours Start 2026.09.24 @ 18:16:02 End 2026.09.24 @ 18:22:19 Sessions 1 Manual Loads 0 Difficulty Rogue Special Mode None Game No. 42 Rogue 32 Adventurer 5 Explorer 5 Win Type - Total 0 Types 0/0/0/0/0/0/0/0/0/0 Lore% 11 Gallery% 20 Achievement% 19 Wizard Run 0 Options --------- Layout 1 ASCII 0 Keyboard 1 Movement Vi Keybinds 0 Fullscreen 2 Font 24/Crisp Map View 50x35 Zoom Use 0% Tactical HUD 0 Map Filters NONE Filters NONE Steam 1 RUN: 2bbc67ba-e13d-44ef-816b-05d20a67652b